{"text_format":"1","workbook":"xlsx","n_sheets":4,"sheets":["Aufgabe","Messung","Auswertung","Programm step"],"not_rendered":{"charts":5,"images":2,"macros":1,"external_links":0,"defined_names":10,"comments":0,"pivot_tables":0},"unopened":[{"sheet":"Programm step","index":3,"reason":"part_missing"}],"bounds":{"document_bytes":16777216,"sheet_cells":100000,"rows_first":2000,"rows_last":500,"rows_between":2000,"halvings":0,"cell_chars":16384,"cell_head_chars":4096},"cells_cut":0,"cells_raw":0,"read":"whole","date_system":"1900"}

{"sheet":"Aufgabe","index":0,"n_rows":19,"n_cols":1,"rows_kept":19,"cut":false,"hidden":false,"merged":[]}
["Reaktionszeitenmessung"]
[]
["Bevor Sie loslegen:"]
["- Sie müssen zur Arbeit mit dieser Datei Makros aktivieren (z. B. Extras - Optionen - Sicherheit - Makros - Zugriff zulassen.)"]
["- Beim Verlassen des Programms müssen Sie Ihre Ergebnisse in einer Datei unter einem anderen Namen speichern, damit die Originaldatei nicht überschrieben wird."]
[]
[]
["Mit Hilfe dieser Excel-Datei können Sie Ihre eigene Reaktionsfähigkeit untersuchen. "]
[]
["Wählen Sie das Blatt \"Messung\" und klicken Sie auf die Schaltflache \"Messung starten\". Es erscheint in zufälligen Zeitabständen eine Schaltfläche. "]
["an einer von vier Positonen´, jedoch nie zweimal an gleicher Position hintereinander."]
["Klicken Sie dann mit der linken Maustaste auf \"Reaktionszeit stoppen\". Lassen Sie die Taste danach schnell wieder los. Die von Ihnen benötigte Zeit wird angezeigt. "]
["Nach Beendigung des Versuchs findet man ein Protokoll mit Kenndaten und Diagrammen im Blatt \"Auswertung\". "]
["Zu lange Wartezeiten (>3000ms) werden im Protokoll als Lücken sichtbar."]
[]
["Messen Sie Ihre Reaktionszeiten mindestens 200 mal."]
[]
[]
["Anmerkung: Die Anwendung funktioniert nicht unter iOS (Apple)"]

{"sheet":"Messung","index":1,"n_rows":2,"n_cols":2,"rows_kept":2,"cut":false,"hidden":false,"merged":[]}
["Reaktionstest"]
["no","Millisekunden"]

{"sheet":"Auswertung","index":2,"n_rows":34,"n_cols":8,"rows_kept":34,"cut":false,"hidden":false,"merged":[]}
["Testprotokoll"]
["Wartezeit (s) min/max->",1,3,null,"Sigma-Intervall",null,"Anzahl"]
["Mittelwert",{"$f":"AVERAGE(B6:B2006)","v":{"$error":"#DIV/0!"}},{"$f":"AVERAGE(C6:C2006)","v":{"$error":"#DIV/0!"}},null,{"$f":"my-sigma/SQRT(COUNT(C7:C2007))","v":{"$error":"#DIV/0!"}},{"$f":"my+sigma/SQRT(COUNT(C7:C2007))","v":{"$error":"#DIV/0!"}},{"$f":"COUNT(C7:C1737)","v":0}]
["Standardabweichung",{"$f":"STDEVP(B6:B2005)","v":{"$error":"#DIV/0!"}},{"$f":"STDEVP(C6:C2005)","v":{"$error":"#DIV/0!"}},null,"von","bis"]
["geschlafen (Anz/ms)"]
["Nr","gewartet(s)","Reaktionszeit(ms)",null,"Kl-Grenzen","Kl-Mitten","Hfgk-Dichte","Wk-Dichte"]
[null,null,null,null,{"$f":"my-3*sigma","v":{"$error":"#DIV/0!"}}]
[null,null,null,null,{"$f":"E7+3*sigma/10","v":{"$error":"#DIV/0!"}},{"$f":"(E7+E8)/2","v":{"$error":"#DIV/0!"}},{"$f":"FREQUENCY(Reaktionszeit,E8:E27)/COUNT(Reaktionszeit)/(6*sigma/20)","v":{"$error":"#DIV/0!"}},{"$f":"(NORMDIST(E8,C$3,C$4,TRUE)-NORMDIST(E7,C$3,C$4,TRUE))/(6*sigma/20)","v":{"$error":"#DIV/0!"}}]
[null,null,null,null,{"$error":"#DIV/0!"},{"$error":"#DIV/0!"},{"$error":"#DIV/0!"},{"$error":"#DIV/0!"}]
[null,null,null,null,{"$error":"#DIV/0!"},{"$error":"#DIV/0!"},{"$error":"#N/A"},{"$error":"#DIV/0!"}]
[null,null,null,null,{"$error":"#DIV/0!"},{"$error":"#DIV/0!"},{"$error":"#N/A"},{"$error":"#DIV/0!"}]
[null,null,null,null,{"$error":"#DIV/0!"},{"$error":"#DIV/0!"},{"$error":"#N/A"},{"$error":"#DIV/0!"}]
[null,null,null,null,{"$error":"#DIV/0!"},{"$error":"#DIV/0!"},{"$error":"#N/A"},{"$error":"#DIV/0!"}]
[null,null,null,null,{"$error":"#DIV/0!"},{"$error":"#DIV/0!"},{"$error":"#N/A"},{"$error":"#DIV/0!"}]
[null,null,null,null,{"$error":"#DIV/0!"},{"$error":"#DIV/0!"},{"$error":"#N/A"},{"$error":"#DIV/0!"}]
[null,null,null,null,{"$error":"#DIV/0!"},{"$error":"#DIV/0!"},{"$error":"#N/A"},{"$error":"#DIV/0!"}]
[null,null,null,null,{"$error":"#DIV/0!"},{"$error":"#DIV/0!"},{"$error":"#N/A"},{"$error":"#DIV/0!"}]
[null,null,null,null,{"$error":"#DIV/0!"},{"$error":"#DIV/0!"},{"$error":"#N/A"},{"$error":"#DIV/0!"}]
[null,null,null,null,{"$error":"#DIV/0!"},{"$error":"#DIV/0!"},{"$error":"#N/A"},{"$error":"#DIV/0!"}]
[null,null,null,null,{"$error":"#DIV/0!"},{"$error":"#DIV/0!"},{"$error":"#N/A"},{"$error":"#DIV/0!"}]
[null,null,null,null,{"$error":"#DIV/0!"},{"$error":"#DIV/0!"},{"$error":"#N/A"},{"$error":"#DIV/0!"}]
[null,null,null,null,{"$error":"#DIV/0!"},{"$error":"#DIV/0!"},{"$error":"#N/A"},{"$error":"#DIV/0!"}]
[null,null,null,null,{"$error":"#DIV/0!"},{"$error":"#DIV/0!"},{"$error":"#N/A"},{"$error":"#DIV/0!"}]
[null,null,null,null,{"$error":"#DIV/0!"},{"$error":"#DIV/0!"},{"$error":"#N/A"},{"$error":"#DIV/0!"}]
[null,null,null,null,{"$error":"#DIV/0!"},{"$error":"#DIV/0!"},{"$error":"#N/A"},{"$error":"#DIV/0!"}]
[null,null,null,null,{"$error":"#DIV/0!"},{"$error":"#DIV/0!"},{"$error":"#N/A"},{"$error":"#DIV/0!"}]
[null,null,null,null,{"$error":"#DIV/0!"},{"$error":"#DIV/0!"},{"$error":"#N/A"},{"$error":"#DIV/0!"}]
[]
[null,null,null,null,"q1",{"$f":"PERCENTILE(Reaktionszeit,0.25)","v":{"$error":"#NUM!"}}]
[null,null,null,null,"min",{"$f":"MIN(Reaktionszeit)","v":0}]
[null,null,null,null,"median",{"$f":"MEDIAN(Reaktionszeit)","v":{"$error":"#NUM!"}}]
[null,null,null,null,"mittel",{"$f":"AVERAGE(Reaktionszeit)","v":{"$error":"#DIV/0!"}}]
[null,null,null,null,"max",{"$f":"MAX(Reaktionszeit)","v":0}]
[null,null,null,null,"q3",{"$f":"PERCENTILE(Reaktionszeit,0.75)","v":{"$error":"#NUM!"}}]